bitfinex/quotes_ETHUSD_20241129
["timestamp","ask_amount","ask_price","bid_price","bid_amount"]
[1732846492771,1.0871372,3591.8,3591.2,2.78455]
[1732846493103,2.78414,3591.8,3590.8,2.78488]
[1732846493268,1.0871372,3591.7,3590.8,2.78488]
[1732846493470,3.43533611,3591.6,3590.8,2.78488]
[1732846493671,0.2604372,3591.5,3590.8,2.78488]
[1732846493890,0.2604372,3591.5,3590.9,2.78476]
[1732846494275,0.2604372,3591.5,3590.8,2.78488]
[1732846495302,0.2604372,3591.5,3590.9,2.78477]
[1732846495510,0.46787356,3591.4,3590.9,2.78477]
[1732846495809,0.7762,3591.4,3590.8,2.78489]
[1732846496011,2.78461,3591.2,3590.4,2.78516]
[1732846496304,0.26040861,3591.1,3590.5,2.78511]
[1732846496471,3.56062,3591.4,3590.5,2.78511]
[1732846496807,2.78458,3591.2,3590.5,2.78511]
[1732846497103,0.67354989,3591.3,3590.7,2.78495]
[1732846497310,0.93398156,3591.3,3590.7,2.78495]
[1732846497602,0.93398156,3591.3,3590.7,2.78492]
[1732846497805,0.93398156,3591.3,3590.8,2.78488]
[1732846498001,0.26043167,3591.3,3590.8,2.78488]
[1732846498381,0.7762,3591.4,3590.8,2.78488]
[1732846499007,1.03666413,3591.4,3590.8,2.78488]
[1732846499171,1.03666413,3591.4,3590.9,2.78479]
[1732846499367,0.7762,3591.4,3590.9,2.78479]
[1732846499571,1.03666413,3591.4,3591.1,2.78462]
[1732846499811,1.03666413,3591.4,3590.9,2.78479]
[1732846499812,0.7762,3591.4,3590.9,2.78479]
[1732846499983,1.03666413,3591.4,3590.9,2.78479]
[1732846500188,0.7762,3591.4,3590.9,2.78479]
[1732846500386,1.03666413,3591.4,3590.9,2.78479]
[1732846500598,0.38209541,3591.3,3590.9,2.78479]
[1732846501674,0.38209541,3591.3,3590.3,3.20663]
[1732846501877,1.03666413,3591.4,3590.8,2.78487]
[1732846502101,0.7762,3591.4,3590.9,2.78475]
[1732846502409,1.03669838,3591.4,3590.9,2.78475]
[1732846502613,0.7762,3591.4,3591.0,2.78472]
[1732846502813,0.26049838,3591.6,3590.7,2.78496]
[1732846503015,0.7851,3591.7,3591.5,2.78435]
[1732846503224,0.7851,3592.0,3591.5,2.78435]
[1732846503429,0.7851,3592.0,3591.6,2.78421]
[1732846503724,0.7851,3592.0,3591.8,2.78409]
[1732846503923,0.812,3592.4,3591.8,2.78409]
[1732846504218,0.38560484,3592.3,3591.9,2.78396]
[1732846504432,1.07249838,3592.4,3591.7,2.78419]
[1732846504433,0.812,3592.4,3592.0,2.78393]
[1732846504608,0.812,3592.4,3592.1,2.78385]
[1732846504809,0.812,3592.4,3592.0,2.78393]
[1732846505279,0.812,3592.4,3592.0,2.78396]
[1732846505486,0.03480072,3592.9,3592.2,2.7838]
[1732846505487,0.26036081,3592.3,3592.2,2.7838]
[1732846505832,0.26036081,3592.6,3592.5,2.78357]
[1732846506116,0.8157,3592.7,3592.5,2.78357]
[1732846506366,0.8157,3592.7,3592.6,2.78349]
[1732846506486,0.8028,3593.0,3592.6,2.78349]
[1732846506686,0.26036081,3592.9,3592.7,2.78341]
[1732846506929,0.8028,3593.0,3592.4,2.78364]
[1732846507129,3.58599,3593.0,3592.2,3.33378]
[1732846507282,0.65375678,3592.9,3592.1,0.55]
[1732846507490,0.61895981,3592.9,3592.2,2.78378]
[1732846507795,0.61895981,3592.9,3592.3,2.78366]
[1732846507796,0.26036081,3592.8,3592.3,2.78366]
[1732846507996,0.61895981,3592.9,3592.3,2.78366]
[1732846508779,0.61859555,3592.9,3592.3,2.78366]
[1732846508987,0.42046056,3592.8,3592.3,2.78366]
[1732846509393,0.42046056,3592.8,3592.4,2.78364]
[1732846509717,0.8028,3593.0,3592.8,2.78332]
[1732846509931,0.8181,3593.3,3593.0,2.78318]
[1732846510345,0.8181,3593.6,3592.7,2.78342]
[1732846510497,0.8181,3593.6,3593.1,2.78306]
[1732846510701,0.8181,3593.6,3593.2,2.78297]
[1732846510903,0.8181,3593.6,3593.3,2.78295]
[1732846511099,0.8181,3593.6,3593.2,2.78302]
[1732846511807,0.8181,3593.6,3593.3,2.78291]
[1732846512008,1.05079655,3593.9,3593.5,2.78279]
[1732846512208,0.7908,3593.9,3593.3,0.55]
[1732846512538,0.03478673,3593.8,3593.3,0.55]
[1732846512749,0.7908,3593.9,3593.3,3.33295]
[1732846513040,1.17759133,3593.9,3593.3,3.33295]
[1732846513548,2.78276,3593.6,3592.8,2.78327]
[1732846513894,2.78276,3593.6,3592.9,0.55]
[1732846514042,2.78276,3593.6,3592.9,2.78325]
[1732846514216,0.8055,3593.7,3593.0,3.33312]
[1732846514414,0.39748613,3593.6,3592.8,2.78331]
[1732846514633,0.0347911,3593.5,3592.8,2.78331]
[1732846514941,0.39748613,3593.6,3592.9,2.78325]
[1732846515110,3.18020613,3593.6,3592.9,2.78325]
[1732846515314,0.7674,3594.5,3593.8,2.78255]
[1732846515641,3.54943,3594.5,3593.1,0.55]
[1732846515854,3.54943,3594.5,3593.5,2.78272]
[1732846516143,0.7529,3593.6,3592.4,0.4214]
[1732846516362,0.7529,3593.6,3593.0,2.78314]
[1732846516559,0.7529,3593.6,3593.1,2.78309]
[1732846516903,1.106441,3593.6,3593.1,2.78309]
[1732846517205,1.106441,3593.6,3591.3,0.1]
[1732846517206,2.78365,3592.4,3591.7,0.4214]
[1732846517521,0.03479861,3592.3,3591.4,2.78437]
[1732846517720,0.8299,3592.2,3591.4,2.78437]
[1732846517908,0.8299,3592.2,3591.5,2.78428]
[1732846518104,2.78396,3592.0,3590.7,0.4214]
[1732846518309,3.56373,3591.6,3590.8,2.78485]
[1732846518532,3.56373,3591.6,3590.5,2.78505]
[1732846518533,2.78445,3591.4,3590.5,2.78506]
[1732846518751,2.78445,3591.4,3590.7,2.78496]
[1732846518950,5.56894,3591.4,3590.5,2.7851]
[1732846519108,0.63831524,3591.4,3590.2,0.4214]
[1732846519315,0.63831524,3591.4,3590.7,2.7849]
[1732846519619,0.63831524,3591.4,3590.7,2.78494]
[1732846519837,3.42274524,3591.4,3590.8,0.55]
[1732846520046,0.63831524,3591.4,3590.8,0.55]
[1732846520652,0.63831524,3591.4,3590.7,2.78494]
[1732846520825,0.63831524,3591.4,3590.5,2.78512]
[1732846521031,3.42277524,3591.4,3590.6,2.78503]
[1732846521252,0.7623,3591.2,3590.0,2.78546]
[1732846521429,0.7623,3590.9,3590.0,2.78546]
[1732846521628,0.7623,3590.9,3590.0,2.78549]
[1732846521837,0.7623,3590.9,3590.3,2.78527]
[1732846522155,0.7623,3590.9,3590.0,2.7855]
[1732846522363,0.7623,3590.9,3590.2,2.78528]
[1732846522658,0.7623,3590.9,3590.3,2.78522]
[1732846522839,0.7623,3590.9,3590.1,2.78543]
[1732846523015,0.03481804,3590.8,3590.2,0.55]
[1732846523214,3.54718,3590.9,3589.9,0.55]
[1732846523465,0.7623,3590.9,3590.1,0.55]
[1732846523640,0.361355,3592.1,3589.7,0.55]
[1732846523641,0.03481878,3590.8,3589.7,0.55]
[1732846523968,2.78524,3590.4,3589.7,2.78573]
[1732846524668,3.418271,3590.4,3589.5,2.78589]
[1732846524823,0.8106,3590.3,3589.4,2.78597]
[1732846525021,0.8106,3590.3,3589.6,2.7858]
[1732846525342,0.8106,3590.3,3589.7,0.55]
[1732846526267,0.8106,3590.3,3589.7,3.3357]
[1732846526763,0.03482209,3590.2,3589.2,0.55]
[1732846526974,2.78544,3590.1,3589.2,3.33606]
[1732846527142,2.78544,3590.1,3589.2,2.78606]
[1732846527342,0.7933,3589.9,3589.2,2.78606]
[1732846527966,0.7933,3589.9,3589.6,2.78578]
[1732846528353,0.8199,3590.5,3589.7,2.78572]
[1732846528539,3.60506,3590.5,3589.7,0.55]
[1732846528864,0.8199,3590.2,3589.4,3.33596]
[1732846529096,3.60529,3590.2,3589.5,2.78589]
[1732846529265,0.8199,3590.2,3589.6,0.55]
[1732846529596,0.8199,3590.2,3589.7,2.78574]
[1732846530665,0.8199,3590.2,3589.7,2.78571]
[1732846531207,2.78475,3591.0,3590.1,2.78543]
[1732846531353,2.78453,3591.3,3590.1,2.78543]
[1732846531354,3.55213,3590.9,3590.1,2.78536]
[1732846531997,3.55213,3590.9,3589.9,0.55]
[1732846532162,3.55213,3590.9,3590.1,0.55]
[1732846532364,2.78491,3590.8,3590.1,0.55]
[1732846532708,0.7673,3590.9,3589.9,0.55]
[1732846532997,2.78502,3590.7,3589.9,3.33557]
[1732846534010,2.78505,3590.6,3589.9,3.33557]
[1732846534185,0.814,3590.5,3589.6,0.55]
[1732846534576,0.814,3590.5,3589.9,2.78556]
[1732846534889,0.814,3590.5,3590.0,3.33549]
[1732846535267,0.814,3590.5,3590.1,2.78543]
[1732846535467,0.814,3590.5,3590.2,2.78535]
[1732846535697,0.814,3590.5,3590.0,3.33549]
[1732846536986,0.814,3590.5,3590.1,2.78537]
[1732846537737,0.814,3590.5,3590.0,0.55]
[1732846538610,1.173905,3590.5,3589.7,2.78573]
[1732846538821,2.78526,3590.4,3589.7,2.78573]
[1732846539238,2.7852,3590.4,3589.7,2.78573]
[1732846540250,0.814,3590.5,3589.6,3.93457175]
[1732846540396,0.7637,3590.9,3589.8,2.78567]
[1732846540591,0.7637,3590.9,3590.4,2.78517]
[1732846540791,0.7637,3590.9,3589.9,0.02064701]
[1732846540792,0.7637,3591.4,3590.2,2.78536]
[1732846540993,0.8128,3592.1,3591.4,2.78441]
[1732846541218,0.8128,3592.1,3590.8,0.4214]
[1732846541535,2.7845,3591.3,3590.6,2.78499]
[1732846541739,0.8128,3591.2,3590.7,0.55]
[1732846541945,0.8128,3591.2,3590.7,3.33496]
[1732846542144,0.8128,3591.2,3590.7,0.55]
[1732846542433,3.957126,3591.2,3590.7,0.55]
[1732846542634,3.33258794,3592.5,3591.1,0.55]
[1732846542635,0.8024,3591.7,3591.1,0.55]
[1732846542943,0.8024,3591.7,3591.2,2.78455]
[1732846544076,0.8024,3591.7,3590.6,2.78497]
[1732846544077,0.0348077,3591.6,3590.6,2.78497]
[1732846544383,3.57389,3591.2,3590.6,0.55]
[1732846544581,0.357389,3591.1,3590.6,0.55]
[1732846544781,0.357389,3591.1,3590.2,2.78535]
[1732846544782,2.78474,3591.0,3590.2,2.78535]
[1732846545078,2.78503,3590.7,3589.9,2.78552]
[1732846545291,0.8291,3590.5,3589.7,2.78574]
[1732846545441,3.61429,3590.5,3589.7,2.78574]
[1732846545643,0.639926,3590.4,3589.7,2.78574]
[1732846545844,3.425146,3590.4,3589.7,2.78574]
[1732846546061,0.639926,3590.4,3589.8,2.78565]
[1732846547184,3.61425,3590.5,3589.8,2.78565]
[1732846547970,2.7852,3590.4,3589.7,2.78574]
[1732846548368,2.7852,3590.4,3589.2,0.557239]
[1732846548369,0.84892173,3590.3,3589.2,2.78613]
[1732846548696,0.8141,3589.8,3589.2,2.78613]
[1732846549453,0.8141,3589.8,3589.0,2.78628]
[1732846549690,0.8141,3589.8,3588.8,0.55]
[1732846549691,0.03482733,3589.7,3588.8,0.55]
[1732846549855,0.8141,3589.8,3588.9,2.78636]
[1732846550205,0.03482743,3589.7,3588.9,2.78636]
[1732846550367,0.7865,3589.4,3588.7,2.78651]
[1732846550560,0.03482927,3589.3,3588.7,2.78651]
[1732846551062,0.7865,3589.4,3588.7,2.78651]
[1732846551261,0.7865,3589.4,3587.9,0.4214]
[1732846551262,2.78606,3589.3,3587.9,0.4214]
[1732846551476,0.357256,3589.2,3588.5,2.78667]
[1732846551682,0.357256,3589.2,3588.6,2.78652]
[1732846551895,0.62528161,3591.2,3588.0,0.71442236]
[1732846551896,0.7871,3589.0,3588.2,2.78686]
[1732846552196,3.57339,3589.0,3588.2,2.78685]
[1732846552596,6.35975,3589.0,3588.2,2.78685]
[1732846552892,2.7864,3588.9,3588.0,2.78706]
[1732846553099,2.7864,3588.9,3588.1,2.78696]
[1732846553393,0.35735,3588.8,3588.3,2.7868]
[1732846553592,0.35735,3588.8,3588.0,2.78702]
[1732846554489,0.35735,3588.8,3588.2,2.7869]
[1732846555567,0.7883,3588.6,3587.9,2.78713]
[1732846555963,0.7883,3588.6,3587.6,0.4214]
[1732846556191,2.78514,3590.5,3587.9,4.28464398]
[1732846556192,3.60313908,3589.4,3587.9,4.28464398]
[1732846556401,0.7823,3589.4,3588.1,0.4214]
[1732846556601,0.7823,3589.4,3588.7,2.78652]
[1732846556905,1.13912,3589.4,3588.9,2.7863]
[1732846557109,1.13912,3589.4,3588.7,5.57298]
[1732846557262,1.13912,3589.4,3588.7,2.78646]
[1732846557468,1.13912,3589.4,3588.8,2.78641]
[1732846557768,1.13912,3589.4,3587.7,0.3491104]
[1732846557769,0.8026,3588.7,3587.4,0.4214]
[1732846557970,0.8026,3588.7,3588.2,2.78687]
[1732846558304,0.8026,3588.7,3588.1,2.78694]
[1732846558506,0.8026,3588.7,3588.2,2.78688]
[1732846558707,0.8026,3588.7,3588.1,2.78697]
[1732846558873,0.8026,3588.7,3588.2,2.78688]
[1732846559506,0.8026,3588.7,3588.1,2.78695]
[1732846559667,1.161496,3588.7,3588.1,2.78695]
[1732846560010,1.161496,3588.7,3587.2,2.78764]
[1732846560011,3.59183,3588.6,3587.4,2.78753]
[1732846560162,0.8052,3588.6,3588.2,2.78689]
[1732846560605,0.8052,3588.6,3588.3,2.78681]
[1732846561110,0.8052,3588.6,3588.1,2.78696]
[1732846561266,0.8052,3588.6,3587.7,2.78727]
[1732846561470,2.78679,3588.4,3587.7,2.78727]
[1732846561789,2.787,3588.1,3587.3,2.78757]
[1732846561992,0.0348445,3588.0,3587.3,2.78754]
[1732846562165,2.78699,3588.1,3587.3,2.78754]
[1732846562373,0.8165,3588.3,3587.3,2.78754]
[1732846562568,2.78701,3588.1,3587.3,2.78754]
[1732846562792,2.78701,3588.1,3587.1,2.78769]
[1732846562793,0.8165,3588.3,3587.8,2.7872]
[1732846563224,0.7734,3588.9,3587.9,2.78714]
[1732846563435,0.03483818,3588.8,3587.9,2.78714]
[1732846563705,0.7734,3588.5,3587.5,2.78739]
[1732846563890,2.78684,3588.3,3587.6,2.78736]
[1732846564107,3.56014,3588.5,3587.6,2.78736]
[1732846564333,3.421436,3588.4,3587.6,2.78736]
[1732846564834,0.634666,3588.4,3587.7,2.78728]
[1732846565332,3.421426,3588.4,3587.5,2.78745]
[1732846565635,2.78684,3588.3,3587.5,2.78745]
[1732846565830,3.59441,3588.2,3587.1,0.4214]
[1732846565994,0.8075,3588.2,3587.4,2.7875]
[1732846566194,0.8075,3588.2,3587.5,2.78743]
[1732846566418,0.8075,3588.2,3587.1,0.4214]
[1732846566419,0.8075,3588.2,3587.6,2.78735]
[1732846567027,0.8075,3588.2,3587.5,2.78738]
[1732846567432,2.78699,3588.1,3587.4,2.78751]
[1732846567632,0.8075,3588.2,3587.5,2.78741]
[1732846567995,3.59443,3588.2,3587.5,2.78741]
[1732846568195,1.445611,3588.2,3587.6,2.78736]
[1732846568422,0.8075,3588.2,3587.6,2.78736]
[1732846568631,0.8075,3588.2,3587.8,2.78721]
[1732846569424,0.8075,3588.2,3587.5,2.78745]
[1732846569829,0.766,3589.1,3588.2,2.78687]
[1732846570030,0.766,3589.1,3588.3,2.78682]
[1732846570031,3.55227,3589.1,3588.3,2.78682]
[1732846570231,0.63384,3589.0,3588.1,2.78699]
[1732846570435,3.42016,3589.0,3588.3,2.78681]
[1732846570611,0.63384,3589.0,3588.1,2.78699]
[1732846571143,0.63384,3589.0,3588.4,2.78674]
[1732846571468,2.78655,3588.7,3587.5,3.09055885]
[1732846571623,8.97607885,3590.0,3587.7,2.78723]
[1732846571624,2.78682,3588.4,3587.7,2.78723]
[1732846572255,2.78682,3588.4,3587.4,0.4214]
[1732846572256,2.78698,3588.2,3587.5,2.78745]
[1732846572408,0.8041,3587.8,3587.0,0.96620937]
[1732846572609,0.8041,3587.8,3587.4,2.78746]
[1732846572846,0.8041,3587.8,3587.0,0.96620937]
[1732846572847,0.8041,3587.8,3587.3,2.78757]
[1732846573047,0.8041,3587.8,3587.0,0.96620937]
[1732846573048,0.8041,3587.8,3587.2,2.78768]
[1732846573345,0.8041,3587.8,3587.5,2.78745]
[1732846573564,0.8041,3587.8,3587.2,2.78768]
[1732846573565,0.8041,3587.8,3587.6,2.78734]
[1732846574751,0.8041,3587.8,3587.3,2.78757]
[1732846574752,0.8041,3587.8,3587.4,2.78753]
[1732846574953,0.03484363,3587.7,3586.9,2.78789]
[1732846575321,0.36261636,3587.6,3587.0,2.78781]
[1732846575762,0.03484819,3587.5,3587.0,2.78781]
[1732846576119,0.36261636,3587.6,3587.0,2.78781]
[1732846576666,0.8041,3587.8,3586.8,0.55]
[1732846576866,0.8041,3587.8,3587.3,2.78756]
[1732846577024,3.59133,3587.8,3587.0,2.78781]
[1732846577640,0.7556,3587.4,3586.7,2.78801]
[1732846577888,0.7556,3587.4,3586.5,0.55]
[1732846578171,0.7556,3587.4,3586.8,2.78797]
[1732846578529,0.7556,3587.4,3586.9,2.78786]
[1732846579125,0.7556,3587.4,3586.6,2.78811]
[1732846579331,0.354305,3587.3,3586.6,2.78811]
[1732846579546,0.7556,3587.4,3586.7,2.78806]
[1732846579825,0.7556,3587.4,3586.8,3.35082288]
[1732846580328,0.7556,3587.4,3586.9,2.78789]
[1732846581041,0.7556,3587.4,3586.9,2.78784]
[1732846581538,0.7556,3587.4,3586.8,3.35083288]
[1732846581870,3.54317,3587.4,3586.8,0.56284288]
[1732846582072,3.1,3588.5,3586.3,2.78833]
[1732846582073,0.7683,3587.1,3586.3,2.78833]
[1732846582230,0.8174,3586.8,3585.8,2.78877]
[1732846582427,0.8174,3586.7,3586.0,2.78855]
[1732846583248,0.7659,3586.6,3585.8,2.78877]
[1732846583580,0.7659,3586.6,3585.9,0.54998004]
[1732846583732,0.7659,3586.4,3585.8,2.78877]
[1732846584086,2.78848,3586.2,3585.4,3.34422959]
[1732846584378,0.8078,3586.0,3585.4,0.55516959]
[1732846584551,0.8078,3585.9,3585.2,2.78922]
[1732846584758,0.8078,3585.3,3583.9,2.79025]
[1732846584973,0.8078,3585.3,3583.6,3.93956106]
[1732846584974,0.8078,3585.1,3584.0,0.29444573]
[1732846585277,0.8078,3585.1,3584.4,2.78984]
[1732846585492,0.8078,3585.1,3584.2,0.56588348]
[1732846585493,0.8078,3585.1,3584.7,2.78955]
[1732846585643,0.8078,3585.1,3584.5,2.78978]
[1732846585843,0.8078,3585.1,3584.6,2.7897]
[1732846586070,0.8078,3585.1,3584.7,2.78962]
[1732846586282,0.8078,3585.1,3584.6,2.7897]
[1732846586687,0.8078,3585.1,3584.4,2.78984]
[1732846586854,0.8078,3585.1,3584.3,2.78988]
[1732846587158,0.8078,3585.1,3584.4,2.78982]
[1732846587488,1.17098542,3585.1,3584.2,3.35588348]
[1732846587697,1.17098542,3585.1,3584.1,2.79009]
[1732846587698,1.17098542,3585.1,3584.3,2.78994]
[1732846588055,1.17098542,3585.1,3584.4,2.78984]
[1732846588254,1.17098542,3585.1,3584.5,2.78971]
[1732846588453,0.8078,3585.1,3584.2,2.79002]
[1732846588759,0.8316,3585.9,3584.7,2.78963]
[1732846588962,0.8316,3585.9,3584.9,0.55]
[1732846589191,0.8316,3585.9,3585.7,2.78884]
[1732846589399,0.8316,3585.9,3585.8,2.78877]
[1732846589564,0.8316,3586.7,3586.1,2.78852]
[1732846589752,0.361953,3586.6,3586.0,2.7886]
[1732846590251,3.150103,3586.6,3585.4,2.78901]
[1732846590583,0.7833,3586.4,3585.4,2.78901]
[1732846590873,0.766,3586.2,3585.5,2.789]
[1732846591066,2.78859,3586.1,3585.2,2.78922]
[1732846591269,0.766,3586.0,3585.6,2.78892]
[1732846591470,0.766,3586.0,3585.8,2.78877]
[1732846591966,0.766,3586.0,3585.6,2.78892]
[1732846592499,0.0348629,3585.9,3584.7,0.97627145]
[1732846592666,0.766,3586.0,3584.8,1.04158325]
[1732846592851,0.766,3586.0,3585.7,2.78877]
[1732846593205,0.766,3586.0,3585.8,2.78874]
[1732846593495,0.766,3587.3,3586.6,2.78812]
[1732846593705,3.143054,3587.2,3586.4,2.78831]
[1732846593854,0.766,3587.0,3586.4,2.78831]
[1732846594190,0.766,3587.0,3586.9,2.78792]
[1732846594396,2.78716,3587.9,3587.1,2.78775]
[1732846594558,1.095316,3587.8,3587.1,2.78775]
[1732846595276,1.095316,3587.8,3586.7,2.78807]
[1732846595480,3.882536,3587.8,3586.9,2.78791]
[1732846595665,1.095316,3587.8,3587.2,2.78765]
[1732846595865,1.095316,3587.8,3587.0,2.78782]
[1732846596170,0.7649,3587.6,3587.0,2.78782]
[1732846596690,0.7649,3587.6,3586.6,0.55]
[1732846596858,0.7649,3587.6,3586.6,3.33809]
[1732846597054,0.85244975,3587.5,3586.4,2.78828]
[1732846597299,0.7855,3587.2,3586.4,2.78828]
[1732846597465,0.7855,3587.1,3586.4,2.78828]
[1732846597671,1.142819,3587.1,3586.7,2.78805]
[1732846597866,0.7855,3587.1,3586.7,2.78805]
[1732846598059,0.7855,3587.1,3586.5,2.78823]
[1732846598701,0.7855,3587.1,3586.5,2.78817]
[1732846599197,0.7855,3587.1,3586.0,2.78862]
[1732846599367,2.78793,3586.9,3586.1,2.78852]
[1732846599573,0.8313,3586.8,3586.1,2.78852]
[1732846600056,0.8313,3586.8,3586.1,2.78849]
[1732846600459,2.78815,3586.6,3585.8,2.7887]
[1732846600662,0.775,3586.5,3585.9,2.78862]
[1732846600902,0.775,3586.5,3586.1,2.78852]
[1732846601206,0.775,3586.5,3586.2,2.78839]
[1732846601500,2.78745,3587.6,3586.8,2.78798]
[1732846601666,0.775,3587.7,3587.0,2.78777]
[1732846601861,0.775,3587.4,3586.7,2.78806]
[1732846602305,0.775,3587.4,3586.7,2.78801]
[1732846602505,0.03485117,3587.3,3586.5,2.78823]
[1732846602662,0.03485117,3587.3,3586.3,2.78838]
[1732846602663,0.8227,3587.3,3586.3,2.78838]
[1732846602866,0.8227,3587.3,3586.8,2.78793]
[1732846603291,0.8227,3587.3,3586.6,2.78815]
[1732846603676,0.8227,3587.3,3586.8,2.78799]
[1732846604507,0.8227,3587.3,3586.6,2.78815]
[1732846605001,0.8227,3587.3,3586.9,2.78792]
[1732846605210,0.8227,3587.3,3586.6,2.78813]
[1732846605375,0.8227,3587.3,3586.8,2.78796]
[1732846605581,0.8227,3587.3,3586.6,2.78813]
[1732846605773,0.8227,3587.3,3586.7,2.78807]
[1732846605976,1.183722,3587.3,3586.7,2.78807]
[1732846607363,0.7746,3587.2,3586.7,2.78807]
[1732846608397,0.7746,3587.2,3586.5,2.78822]
[1732846608609,0.03485306,3587.1,3586.5,2.78822]
[1732846608909,0.7746,3587.2,3586.6,2.78808]
[1732846609207,0.7746,3587.2,3586.4,2.7883]
[1732846609208,0.3923162,3587.1,3586.4,2.7883]
[1732846609370,0.3923162,3587.1,3586.2,2.78846]
[1732846609371,3.60195324,3587.0,3586.2,2.78846]
[1732846609570,2.78793,3586.9,3586.0,2.78862]
[1732846609768,0.7792,3586.7,3586.0,2.78862]
[1732846610273,0.7792,3586.7,3585.8,2.78877]
[1732846610494,0.8127,3586.4,3585.7,0.55485948]
[1732846610679,0.8127,3586.4,3586.1,2.78854]
[1732846611499,0.8127,3586.4,3586.1,2.78847]
[1732846612012,0.8127,3586.4,3586.3,2.78838]
[1732846612815,0.7584,3586.7,3586.5,2.78823]
[1732846612973,0.7584,3586.7,3586.6,2.78815]
[1732846613405,0.7584,3586.7,3586.5,2.78823]
[1732846613609,0.7584,3586.7,3586.6,2.78815]
[1732846613973,0.7652,3587.4,3586.3,0.55]
[1732846614174,0.7652,3587.4,3586.9,2.78791]
[1732846615079,0.7652,3587.4,3587.3,2.78761]
[1732846615285,2.78714,3587.9,3587.1,2.78773]
[1732846615504,3.54075,3587.8,3587.1,2.78773]
[1732846615800,0.7535,3587.8,3587.0,2.78777]
[1732846615996,0.354071,3587.7,3587.0,2.78777]
[1732846616437,0.354071,3587.7,3586.6,0.4214]
[1732846616618,3.54073,3587.8,3587.2,2.78768]
[1732846616619,0.7535,3587.8,3587.2,2.78768]
[1732846616927,0.7535,3587.8,3587.3,2.78759]
[1732846617132,2.7873,3587.7,3586.6,0.4214]
[1732846617444,2.78801,3586.8,3586.1,2.78851]
[1732846617589,2.78821,3586.6,3585.8,2.78872]
[1732846617788,0.7508,3586.7,3586.3,2.78835]
[1732846617988,0.7508,3586.7,3586.1,2.78853]
[1732846618232,0.7508,3586.7,3586.2,2.78844]
[1732846618525,2.78818,3586.6,3585.9,2.78863]
[1732846618692,1.104665,3586.7,3586.0,2.78861]
[1732846618888,1.104665,3586.7,3586.1,2.78851]
[1732846619929,3.892755,3586.7,3585.4,3.35148761]
[1732846620099,0.03485737,3586.6,3585.7,3.3388]
[1732846620306,2.78838,3586.3,3585.6,2.78892]
[1732846620487,0.7627,3586.2,3585.7,2.78885]
[1732846620695,0.7627,3586.2,3585.6,2.78892]
[1732846620894,0.03486249,3586.1,3585.4,2.78906]
[1732846621191,0.7627,3586.0,3585.4,2.78906]
[1732846621391,0.03486404,3585.9,3585.2,2.78917]
[1732846621592,0.7627,3586.0,3585.1,2.78932]
[1732846621901,0.7627,3586.0,3585.4,2.78907]
[1732846622999,0.805,3585.1,3584.3,2.78989]
[1732846623206,0.805,3585.1,3584.4,2.78984]
[1732846624225,0.805,3585.1,3584.4,2.7898]
[1732846625540,0.805,3585.1,3584.5,2.78978]
[1732846625902,0.805,3585.1,3584.7,2.78955]
[1732846626096,0.805,3585.1,3584.8,2.78948]
[1732846626664,0.805,3585.1,3584.5,2.78978]
[1732846626920,0.805,3585.1,3584.3,2.78993]
[1732846627124,3.59434,3585.1,3584.3,2.78993]
[1732846627645,3.59434,3585.1,3584.5,2.78978]
[1732846627646,0.805,3585.1,3584.5,2.78978]
[1732846627799,0.805,3585.1,3584.8,2.78955]
[1732846628305,0.805,3585.1,3584.4,0.4214]
[1732846628306,0.805,3585.1,3584.9,2.78946]
[1732846628703,0.8173,3585.5,3585.2,2.78921]
[1732846628941,3.0,3586.4,3584.6,3.96031171]
[1732846628942,0.8173,3586.0,3584.6,3.93956106]
[1732846629155,0.8173,3586.0,3584.8,2.78955]
[1732846629438,0.8173,3586.0,3585.2,2.78923]
[1732846629611,0.8173,3586.0,3585.2,2.78917]
[1732846629816,0.8173,3586.0,3585.7,2.78882]
[1732846630443,0.8173,3586.0,3585.5,2.78901]
[1732846630760,3.966551,3586.0,3585.2,2.78921]
[1732846630932,2.82357284,3585.9,3585.0,2.78939]
[1732846631136,2.7888,3585.8,3585.1,2.78932]
[1732846631347,0.8173,3586.0,3585.1,2.78932]
[1732846631520,0.8173,3586.0,3584.9,0.55]
[1732846631718,0.8173,3586.0,3585.8,2.78877]
[1732846631961,0.8173,3586.0,3585.6,2.78886]
[1732846632137,0.8173,3586.0,3585.9,2.7887]
[1732846632465,0.8173,3586.0,3585.6,2.7889]
[1732846632670,0.8173,3586.0,3585.7,2.78879]
[1732846632955,0.8173,3586.0,3585.3,2.78909]
[1732846633175,2.78899,3585.6,3584.8,3.35554825]
[1732846633327,0.8173,3586.0,3584.9,2.78945]
[1732846633328,0.8115,3585.5,3584.9,2.78945]
[1732846633524,0.8115,3585.5,3584.1,6.72958106]
[1732846633525,0.81336731,3585.4,3584.2,2.78994]
[1732846633726,0.81336731,3585.4,3584.0,0.4214]
[1732846633727,3.56766,3585.3,3584.0,0.4214]
[1732846633934,0.7785,3585.3,3584.1,3.93956106]
[1732846634267,0.7785,3585.3,3584.7,2.78961]
[1732846634447,1.135252,3585.3,3584.7,2.78961]
[1732846634759,1.135252,3585.3,3584.8,2.78949]
[1732846634970,0.7785,3585.3,3584.9,2.78941]
[1732846636063,0.7785,3585.3,3584.6,2.7897]
[1732846636529,0.7785,3585.3,3584.8,2.78952]
[1732846638564,0.7785,3585.3,3584.6,2.7897]